fUSD/lending_fUSD_20240218
["ID","MTS","AMOUNT","RATE_DAILY","PERIOD"]
[314379507,1708248632162,-159.61171781,0.00031899,2]
[314379509,1708248632171,-505.26905185,0.00031998,4]
[314379510,1708248632180,-663.67693629,0.00031998,4]
[314379511,1708248632189,-155.0,0.00031998,4]
[314379512,1708248632199,-150.0,0.00031999,3]
[314379513,1708248632208,-150.0,0.00031999,3]
[314379514,1708248632217,-13599.35725151,0.00032,3]
[314379515,1708248632229,-1012.23348766,0.00032,3]
[314379516,1708248632245,-462.40877132,0.00032,3]
[314379517,1708248632262,-400.67983068,0.00032,3]
[314379518,1708248632303,-310.0,0.00032,3]
[314379519,1708248632360,-2081.9701557,0.00032,3]
[314379520,1708248632485,-133.35050313,0.00032,3]
[314379522,1708248632495,-159.6117178,0.00032263,2]
[314379524,1708248632504,-159.6117178,0.00032626,2]
[314379526,1708248632514,-150.0,0.00032801,2]
[314379529,1708248632523,-119.90854328,0.00032869,2]
[314379556,1708248638204,-150.0,0.00032403,2]
[314379557,1708248638213,-150.0,0.00032576,2]
[314379558,1708248638222,-30.09145672,0.00032869,2]
[314379559,1708248638231,-150.0,0.00032923,2]
[314379560,1708248638241,-159.6117178,0.0003299,2]
[314379561,1708248638251,-150.0,0.00033063,2]
[314379562,1708248638260,-150.0,0.00033109,2]
[314379563,1708248638269,-150.0,0.00033201,2]
[314379564,1708248638279,-289.07433171,0.00033226,2]
[314379565,1708248638289,-159.6117178,0.00033354,2]
[314379566,1708248638298,-150.0,0.00033362,2]
[314379567,1708248638307,-150.0,0.00033371,2]
[314379568,1708248638317,-150.0,0.00033397,2]
[314379569,1708248638326,-5659.29,0.00033514,2]
[314379570,1708248638336,-206.0,0.00033542,11]
[314379571,1708248638345,-159.6117178,0.00033718,2]
[314379572,1708248638354,-150.0,0.00033753,2]
[314379573,1708248638364,-610.76,0.00033849,2]
[314379574,1708248638373,-150.0,0.00033867,2]
[314379575,1708248638383,-1000.0,0.00033875,2]
[314379576,1708248638393,-150.0,0.000339,2]
[314379577,1708248638402,-250.0,0.000339,2]
[314379578,1708248638411,-314.79,0.00033905,2]
[314379579,1708248638420,-150.39,0.00033926,2]
[314379580,1708248638429,-173.08,0.00034002,2]
[314379581,1708248638439,-150.0,0.00034016,2]
[314379582,1708248638448,-310.38,0.00034053,2]
[314379583,1708248638457,-159.6117178,0.00034081,2]
[314379584,1708248638467,-638.38,0.00034157,2]
[314379585,1708248638480,-158.49,0.00034182,2]
[314379587,1708248638489,-150.39,0.00034187,2]
[314379589,1708248638498,-273.28,0.00034211,2]
[314379590,1708248638507,-150.0,0.00034235,2]
[314379592,1708248638517,-158.49,0.00034319,2]
[314379594,1708248638526,-638.38,0.00034355,2]
[314379595,1708248638535,-159.6117178,0.00034445,2]
[314379596,1708248638544,-150.39,0.00034448,2]
[314379597,1708248638554,-158.49,0.00034456,2]
[314379598,1708248638563,-1924.04,0.00034521,2]
[314379599,1708248638572,-300.0,0.00034521,2]
[314379600,1708248638581,-638.38,0.00034552,2]
[314379601,1708248638589,-1500.0,0.00034574,2]
[314379602,1708248638598,-158.49,0.00034593,2]
[314379603,1708248638607,-211.5472,0.00034645,2]
[314379605,1708248638616,-150.0,0.00034697,2]
[314379607,1708248638625,-150.39,0.00034709,2]
[314379608,1708248638634,-158.49,0.0003473,2]
[314379610,1708248638643,-638.38,0.00034749,2]
[314379612,1708248638652,-206.48,0.0003475,2]
[314379613,1708248638662,-206.48,0.0003475,2]
[314379614,1708248638671,-11456.665402,0.000348,2]
[314379615,1708248638680,-913.93908,0.000348,2]
[314379616,1708248638689,-159.6117178,0.00034809,2]
[314379617,1708248638698,-158.49,0.00034868,2]
[314379618,1708248638707,-150.0,0.00034894,2]
[314379619,1708248638716,-206.48,0.00034933,2]
[314379620,1708248638725,-206.48,0.00034933,2]
[314379621,1708248638733,-227.35324951,0.00034943,2]
[314379622,1708248638742,-638.38,0.00034947,2]
[314379623,1708248638752,-150.39,0.0003497,2]
[314379624,1708248638760,-194.53,0.00034975,2]
[314379625,1708248638769,-2892.42654772,0.00034999,4]
[314379626,1708248638778,-429.08214379,0.00035,4]
[314379627,1708248638788,-150.0,0.00035,2]
[314379628,1708248638797,-424.79758987,0.00035,2]
[314379629,1708248638806,-158.49,0.00035005,2]
[314379630,1708248638815,-150.0,0.00035026,2]
[314379631,1708248638824,-166.65,0.00035073,2]
[314379632,1708248638833,-150.0,0.00035081,2]
[314379633,1708248638842,-2284.0,0.000351,2]
[314379634,1708248638850,-206.48,0.00035116,2]
[314379635,1708248638859,-206.48,0.00035116,2]
[314379636,1708248638868,-158.49,0.00035142,2]
[314379637,1708248638877,-638.38,0.00035144,2]
[314379638,1708248638887,-150.0,0.00035155,2]
[314379639,1708248638897,-181.12581354,0.00035159,4]
[314379640,1708248638907,-159.6117178,0.00035173,2]
[314379641,1708248638916,-150.0,0.00035184,2]
[314379642,1708248638926,-162.93449323,0.00035199,4]
[314379643,1708248638935,-22315.0,0.000352,2]
[314379644,1708248638945,-129940.5224,0.00035216,2]
[314379645,1708248638955,-150.0,0.00035222,2]
[314379646,1708248638964,-150.39,0.00035231,2]
[314379647,1708248638973,-1130.9589609,0.00035248,2]
[314379648,1708248638982,-150.0,0.00035267,2]
[314379649,1708248638991,-150.0,0.0003527,2]
[314379650,1708248639001,-158.49,0.00035279,2]
[314379651,1708248639010,-206.48,0.00035299,2]
[314379652,1708248639019,-206.48,0.00035299,2]
[314379653,1708248639027,-2452.369,0.00035316,2]
[314379654,1708248639036,-316.4924,0.00035316,2]
[314379655,1708248639045,-150.0,0.00035333,2]
[314379656,1708248639054,-638.38,0.00035341,2]
[314379657,1708248639063,-1130.9589609,0.00035375,2]
[314379658,1708248639072,-150.0,0.00035396,2]
[314379659,1708248639081,-155.0,0.000354,2]
[314379660,1708248639091,-354.76,0.000354,2]
[314379661,1708248639099,-500.0,0.000354,2]
[314379662,1708248639108,-158.49,0.00035416,2]
[314379663,1708248639117,-544.8902,0.00035416,2]
[314379664,1708248639127,-509.8641,0.00035416,2]
[314379665,1708248639136,-174.21231753,0.00035416,7]
[314379666,1708248639146,-150.0,0.00035464,2]
[314379667,1708248639155,-206.48,0.00035482,2]
[314379668,1708248639164,-206.48,0.00035482,2]
[314379669,1708248639174,-150.39,0.00035492,2]
[314379670,1708248639184,-1357.69951672,0.00035497,2]
[314379671,1708248639193,-1366.70286555,0.00035506,8]
[314379672,1708248639202,-245.32994431,0.00035508,2]
[314379673,1708248639211,-1004.7703,0.00035515,2]
[314379674,1708248639221,-100000.0,0.00035516,2]
[314379675,1708248639230,-2762.4701,0.00035516,2]
[314379676,1708248639239,-525.7,0.00035516,2]
[314379677,1708248639249,-5927.9421,0.00035516,2]
[314379678,1708248639257,-500.0,0.00035516,2]
[314379679,1708248639267,-4348.2432,0.00035516,2]
[314379680,1708248639277,-157.6201,0.00035516,2]
[314379681,1708248639287,-56749.4238,0.00035516,2]
[314379682,1708248639296,-31142.8628,0.00035516,2]
[314379683,1708248639305,-5000.0,0.00035516,3]
[314379684,1708248639314,-1109.99909032,0.00035516,2]
[314379685,1708248639324,-164.19160956,0.00035516,2]
[314379686,1708248639333,-541.92750092,0.00035516,2]
[314379687,1708248639343,-308.9239793,0.00035525,2]
[314379688,1708248639353,-159.6117178,0.00035536,2]
[314379689,1708248639363,-638.38,0.00035539,2]
[314379690,1708248639373,-150.0,0.00035548,2]
[314379691,1708248639382,-314.79,0.00035549,2]
[314379692,1708248639391,-150.0,0.00035552,2]
[314379693,1708248639401,-158.49,0.00035553,2]
[314379694,1708248639411,-1888.0,0.000356,2]
[314379695,1708248639420,-1000.0,0.000356,2]
[314379696,1708248639429,-3644.5409748,0.00035606,8]
[314379697,1708248639439,-189.77979255,0.00035606,2]
[314379698,1708248639448,-512.98149424,0.00035616,15]
[314379699,1708248639457,-500.0,0.00035616,2]
[314379700,1708248639467,-500.0,0.00035616,2]
[314379701,1708248639480,-500.0,0.00035616,2]
[314379702,1708248639489,-500.0,0.00035616,2]
[314379703,1708248639498,-527.08048133,0.00035616,2]
[314379704,1708248639507,-500.0,0.00035616,2]
[314379705,1708248639517,-528.65108572,0.00035616,2]
[314379706,1708248639527,-509.09011388,0.00035616,2]
[314379707,1708248639536,-541.0802173,0.00035616,2]
[314379708,1708248639545,-500.0,0.00035616,2]
[314379709,1708248639555,-558.82344736,0.00035616,2]
[314379710,1708248639564,-500.0,0.00035616,2]
[314379711,1708248639574,-500.0,0.00035616,2]
[314379712,1708248639583,-500.0,0.00035616,2]
[314379713,1708248639593,-500.0,0.00035616,2]
[314379714,1708248639602,-543.62482249,0.00035616,2]
[314379715,1708248639611,-545.84487164,0.00035616,2]
[314379716,1708248639621,-157.27623042,0.00035616,2]
[314379717,1708248639630,-532.38791156,0.00035616,2]
[314379718,1708248639641,-500.0,0.00035616,2]
[314379719,1708248639655,-500.0,0.00035616,2]
[314379720,1708248639665,-524.90327295,0.00035616,2]
[314379721,1708248639675,-500.0,0.00035616,2]
[314379722,1708248639685,-537.20652811,0.00035616,2]
[314379723,1708248639696,-500.0,0.00035616,2]
[314379724,1708248639705,-500.0,0.00035616,2]
[314379725,1708248639715,-500.0,0.00035616,2]
[314379726,1708248639726,-500.0,0.00035616,2]
[314379727,1708248639736,-548.17942011,0.00035616,2]
[314379728,1708248639746,-500.0,0.00035616,2]
[314379729,1708248639758,-535.13280108,0.00035616,2]
[314379730,1708248639767,-500.0,0.00035616,2]
[314379731,1708248639776,-537.55749249,0.00035616,2]
[314379732,1708248639794,-500.0,0.00035616,2]
[314379733,1708248639805,-500.0,0.00035616,2]
[314379734,1708248639815,-183.17469859,0.00035616,2]
[314379735,1708248639824,-534.54089979,0.00035616,2]
[314379736,1708248639833,-534.41165103,0.00035616,2]
[314379737,1708248639843,-552.61120323,0.00035616,2]
[314379738,1708248639851,-500.0,0.00035616,2]
[314379739,1708248639860,-500.0,0.00035616,2]
[314379740,1708248639870,-563.08412692,0.00035616,2]
[314379741,1708248639879,-500.0,0.00035616,2]
[314379742,1708248639888,-500.0,0.00035616,2]
[314379743,1708248639897,-500.0,0.00035616,2]
[314379744,1708248639906,-443.77079505,0.00035616,2]
[314379745,1708248639915,-577.66869672,0.00035616,2]
[314379746,1708248639924,-500.0,0.00035616,2]
[314379747,1708248639935,-500.0,0.00035616,2]
[314379748,1708248639944,-500.0,0.00035616,2]
[314379749,1708248639955,-153.30681954,0.00035616,2]
[314379750,1708248639964,-554.12341206,0.00035616,2]
[314379751,1708248639973,-500.0,0.00035616,2]
[314379752,1708248639982,-500.0,0.00035616,2]
[314379753,1708248639991,-261.17515246,0.00035616,2]
[314379754,1708248640000,-540.47932798,0.00035616,2]
[314379755,1708248640010,-500.0,0.00035616,2]
[314379756,1708248640019,-533.73643002,0.00035616,2]
[314379757,1708248640029,-558.52058267,0.00035616,2]
[314379758,1708248640037,-500.0,0.00035616,2]
[314379759,1708248640046,-570.02412916,0.00035616,2]
[314379760,1708248640055,-519.6496176,0.00035616,2]
[314379761,1708248640065,-500.0,0.00035616,2]
[314379762,1708248640074,-500.0,0.00035616,2]
[314379763,1708248640083,-500.0,0.00035616,2]
[314379764,1708248640092,-541.0160703,0.00035616,2]
[314379765,1708248640102,-500.0,0.00035616,2]
[314379766,1708248640111,-572.20394828,0.00035616,2]
[314379767,1708248640120,-515.94016133,0.00035616,2]
[314379768,1708248640129,-500.0,0.00035616,2]
[314379769,1708248640138,-535.35412825,0.00035616,2]
[314379770,1708248640149,-504.88665465,0.00035616,2]
[314379771,1708248640158,-528.68288759,0.00035616,2]
[314379772,1708248640167,-500.0,0.00035616,2]
[314379773,1708248640176,-500.0,0.00035616,2]
[314379774,1708248640185,-535.8042921,0.00035616,2]
[314379775,1708248640194,-500.0,0.00035616,2]
[314379776,1708248640203,-500.0,0.00035616,2]
[314379777,1708248640213,-500.0,0.00035616,2]
[314379778,1708248640222,-526.92282703,0.00035616,2]
[314379779,1708248640231,-317.72862988,0.00035616,2]
[314379780,1708248640243,-500.0,0.00035616,2]
[314379781,1708248640253,-500.0,0.00035616,2]
[314379782,1708248640263,-500.0,0.00035616,2]
[314379783,1708248640273,-500.0,0.00035616,2]
[314379784,1708248640282,-549.03300208,0.00035616,2]
[314379785,1708248640291,-500.0,0.00035616,2]
[314379786,1708248640301,-500.0,0.00035616,2]
[314379787,1708248640310,-500.0,0.00035616,2]
[314379788,1708248640319,-500.0,0.00035616,2]
[314379789,1708248640328,-500.0,0.00035616,2]
[314379790,1708248640337,-500.0,0.00035616,2]
[314379791,1708248640346,-500.0,0.00035616,2]
[314379792,1708248640356,-500.0,0.00035616,2]
[314379793,1708248640365,-500.0,0.00035616,2]
[314379794,1708248640374,-500.0,0.00035616,2]
[314379795,1708248640383,-500.0,0.00035616,2]
[314379796,1708248640392,-500.0,0.00035616,2]
[314379797,1708248640402,-500.0,0.00035616,2]
[314379798,1708248640411,-500.0,0.00035616,2]
[314379799,1708248640420,-500.0,0.00035616,2]
[314379800,1708248640429,-500.0,0.00035616,2]
[314379801,1708248640438,-500.0,0.00035616,2]
[314379802,1708248640447,-500.0,0.00035616,2]
[314379803,1708248640456,-500.0,0.00035616,2]
[314379804,1708248640465,-299.48598523,0.00035616,2]
[314379805,1708248640476,-500.0,0.00035616,2]
[314379806,1708248640485,-500.0,0.00035616,2]
[314379807,1708248640494,-500.0,0.00035616,2]
[314379808,1708248640503,-500.0,0.00035616,2]
[314379809,1708248640511,-500.0,0.00035616,2]
[314379810,1708248640521,-500.0,0.00035616,2]
[314379811,1708248640530,-500.0,0.00035616,2]
[314379812,1708248640540,-500.0,0.00035616,2]
[314379813,1708248640548,-500.0,0.00035616,2]
[314379814,1708248640558,-500.0,0.00035616,2]
[314379815,1708248640567,-500.0,0.00035616,2]
[314379816,1708248640577,-500.0,0.00035616,2]
[314379817,1708248640586,-483.79571824,0.00035616,2]
[314379818,1708248640595,-410.49660894,0.00035616,2]
[314379819,1708248640604,-500.0,0.00035616,2]
[314379820,1708248640613,-500.0,0.00035616,2]
[314379821,1708248640622,-520.49779766,0.00035616,2]
[314379822,1708248640632,-500.0,0.00035616,2]
[314379823,1708248640641,-534.87783871,0.00035616,2]
[314379824,1708248640650,-500.0,0.00035616,2]
[314379825,1708248640660,-500.0,0.00035616,2]
[314379826,1708248640669,-602.14388394,0.00035616,2]
[314379827,1708248640679,-500.0,0.00035616,2]
[314379828,1708248640688,-500.0,0.00035616,2]
[314379829,1708248640697,-500.0,0.00035616,2]
[314379831,1708248640706,-500.0,0.00035616,2]
[314379832,1708248640715,-500.0,0.00035616,2]
[314379833,1708248640724,-500.0,0.00035616,2]
[314379834,1708248640733,-500.0,0.00035616,7]
[314379837,1708248640875,-500.0,0.00035616,7]
[314379838,1708248640912,-500.0,0.00035616,7]
[314379839,1708248640921,-500.0,0.00035616,2]
[314379840,1708248640931,-500.0,0.00035616,2]
[314379841,1708248640941,-500.0,0.00035616,2]
[314379842,1708248640951,-500.0,0.00035616,2]
[314379843,1708248640960,-453.7646615,0.00035616,2]
[314379844,1708248640969,-592.41761432,0.00035616,2]
[314379845,1708248640978,-500.0,0.00035616,2]
[314379846,1708248640987,-576.70077164,0.00035616,2]
[314379847,1708248640996,-500.0,0.00035616,2]
[314379848,1708248641006,-500.0,0.00035616,2]
[314379849,1708248641016,-500.0,0.00035616,2]
[314379850,1708248641025,-500.0,0.00035616,2]
[314379851,1708248641035,-500.0,0.00035616,2]
[314379852,1708248641045,-500.0,0.00035616,2]
[314379853,1708248641054,-500.0,0.00035616,2]
[314379854,1708248641063,-500.0,0.00035616,2]
[314379855,1708248641073,-500.0,0.00035616,2]
[314379856,1708248641082,-500.0,0.00035616,2]
[314379857,1708248641092,-500.0,0.00035616,2]
[314379858,1708248641101,-500.0,0.00035616,2]
[314379859,1708248641110,-500.0,0.00035616,2]
[314379860,1708248641120,-500.0,0.00035616,2]
[314379861,1708248641130,-500.0,0.00035616,2]
[314379862,1708248641139,-500.0,0.00035616,2]
[314379863,1708248641150,-481.85565922,0.00035616,2]
[314379864,1708248641159,-500.0,0.00035616,2]
[314379865,1708248641168,-500.0,0.00035616,2]
[314379866,1708248641177,-500.0,0.00035616,2]
[314379867,1708248641187,-500.0,0.00035616,2]
[314379868,1708248641196,-500.0,0.00035616,2]
[314379869,1708248641205,-500.0,0.00035616,2]
[314379870,1708248641214,-500.0,0.00035616,2]
[314379871,1708248641223,-500.0,0.00035616,2]
[314379872,1708248641232,-500.0,0.00035616,2]
[314379873,1708248641242,-371.63321457,0.00035616,2]
[314379874,1708248641251,-575.67837596,0.00035616,2]
[314379875,1708248641261,-500.0,0.00035616,2]
[314379876,1708248641271,-500.0,0.00035616,2]
[314379877,1708248641281,-500.0,0.00035616,2]
[314379878,1708248641291,-500.0,0.00035616,2]
[314379879,1708248641300,-500.0,0.00035616,2]
[314379880,1708248641309,-500.0,0.00035616,2]
[314379881,1708248641318,-500.0,0.00035616,2]
[314379882,1708248641327,-500.0,0.00035616,2]
[314379883,1708248641336,-346.83203621,0.00035616,2]
[314379884,1708248641345,-500.0,0.00035616,2]
[314379885,1708248641354,-500.0,0.00035616,2]
[314379886,1708248641363,-500.0,0.00035616,2]
[314379887,1708248641373,-500.0,0.00035616,2]
[314379888,1708248641382,-500.0,0.00035616,2]
[314379889,1708248641392,-500.0,0.00035616,2]
[314379890,1708248641403,-500.0,0.00035616,2]
[314379891,1708248641411,-500.0,0.00035616,2]
[314379892,1708248641421,-500.0,0.00035616,2]
[314379893,1708248641430,-500.0,0.00035616,2]
[314379894,1708248641439,-543.84,0.00035616,2]
[314379895,1708248641449,-150.0,0.00035616,2]
[314379896,1708248641460,-150.0,0.00035616,2]
[314379897,1708248641469,-500.0,0.00035616,2]
[314379898,1708248641482,-500.0,0.00035616,2]
[314379899,1708248641491,-540.57303356,0.00035616,2]
[314379900,1708248641500,-500.0,0.00035616,2]
[314379901,1708248641509,-500.0,0.00035616,2]
[314379902,1708248641518,-613.39293482,0.00035616,2]
[314379903,1708248641527,-500.0,0.00035616,2]
[314379904,1708248641537,-500.0,0.00035616,2]
[314379905,1708248641546,-500.0,0.00035616,2]
[314379906,1708248641555,-500.0,0.00035616,2]
[314379907,1708248641565,-237.36,0.00035616,2]
[314379908,1708248641574,-500.0,0.00035616,2]
[314379909,1708248641583,-500.0,0.00035616,2]
[314379910,1708248641592,-500.0,0.00035616,2]
[314379911,1708248641601,-187.50910814,0.00035616,2]
[314379912,1708248641611,-500.0,0.00035616,2]
[314379913,1708248641621,-500.0,0.00035616,2]
[314379914,1708248641630,-500.0,0.00035616,2]
[314379915,1708248641640,-500.0,0.00035616,2]
[314379916,1708248641650,-500.0,0.00035616,2]
[314379917,1708248641659,-500.0,0.00035616,2]
[314379918,1708248641668,-500.0,0.00035616,2]
[314379919,1708248641677,-500.0,0.00035616,2]
[314379920,1708248641686,-500.0,0.00035616,2]
[314379921,1708248641696,-500.0,0.00035616,2]
[314379922,1708248641705,-500.0,0.00035616,2]
[314379923,1708248641715,-500.0,0.00035616,2]
[314379924,1708248641724,-500.0,0.00035616,2]
[314379925,1708248641732,-500.0,0.00035616,2]
[314379926,1708248641742,-500.0,0.00035616,2]
[314379927,1708248641751,-500.0,0.00035616,2]
[314379928,1708248641760,-500.0,0.00035616,2]
[314379929,1708248641770,-500.0,0.00035616,2]
[314379930,1708248641779,-558.44290364,0.00035616,2]
[314379931,1708248641788,-500.0,0.00035616,2]
[314379932,1708248641797,-500.0,0.00035616,2]
[314379933,1708248641806,-500.0,0.00035616,2]
[314379934,1708248641814,-500.0,0.00035616,2]
[314379935,1708248641823,-500.0,0.00035616,2]
[314379936,1708248641832,-500.0,0.00035616,2]
[314379937,1708248641841,-500.0,0.00035616,2]
[314379938,1708248641850,-599.04288386,0.00035616,2]
[314379939,1708248641859,-500.0,0.00035616,2]
[314379940,1708248641869,-500.0,0.00035616,2]
[314379941,1708248641878,-500.0,0.00035616,2]
[314379942,1708248641887,-500.0,0.00035616,2]
[314379943,1708248641897,-500.0,0.00035616,2]
[314379944,1708248641906,-500.0,0.00035616,2]
[314379945,1708248641915,-500.0,0.00035616,2]
[314379946,1708248641925,-500.0,0.00035616,2]
[314379947,1708248641934,-500.0,0.00035616,2]
[314379948,1708248641943,-500.0,0.00035616,2]
[314379949,1708248641952,-500.0,0.00035616,2]
[314379950,1708248641961,-500.0,0.00035616,2]
[314379951,1708248641971,-247.07380186,0.00035616,2]
[314379952,1708248641980,-500.0,0.00035616,2]
[314379953,1708248641990,-500.0,0.00035616,2]
[314379954,1708248641999,-595.80307713,0.00035616,2]
[314379955,1708248642008,-500.0,0.00035616,2]
[314379956,1708248642017,-500.0,0.00035616,2]
[314379957,1708248642026,-500.0,0.00035616,2]
[314379958,1708248642035,-500.0,0.00035616,2]
[314379959,1708248642044,-536.56214881,0.00035616,2]
[314379960,1708248642053,-577.7513362,0.00035616,2]
[314379961,1708248642062,-584.5142471,0.00035616,2]
[314379962,1708248642071,-629.07043285,0.00035616,2]
[314379963,1708248642080,-500.0,0.00035616,2]
[314379964,1708248642089,-500.0,0.00035616,2]
[314379965,1708248642097,-500.0,0.00035616,2]
[314379966,1708248642106,-500.0,0.00035616,2]
[314379967,1708248642115,-500.0,0.00035616,2]
[314379968,1708248642124,-500.0,0.00035616,2]
[314379969,1708248642133,-500.0,0.00035616,2]
[314379970,1708248642143,-500.0,0.00035616,2]
[314379971,1708248642153,-223.52622778,0.00035616,2]
[314379972,1708248642164,-500.0,0.00035616,2]
[314379973,1708248642173,-500.0,0.00035616,2]
[314379974,1708248642183,-169.16176647,0.00035616,2]
[314379975,1708248642192,-500.0,0.00035616,2]
[314379976,1708248642201,-500.0,0.00035616,2]
[314379977,1708248642210,-500.0,0.00035616,2]
[314379978,1708248642219,-500.0,0.00035616,2]
[314379979,1708248642228,-500.0,0.00035616,2]
[314379980,1708248642238,-500.0,0.00035616,2]
[314379981,1708248642247,-500.0,0.00035616,2]
[314379982,1708248642256,-500.0,0.00035616,2]
[314379983,1708248642265,-500.0,0.00035616,2]
[314379984,1708248642274,-500.0,0.00035616,2]
[314379985,1708248642285,-500.0,0.00035616,2]
[314379986,1708248642294,-500.0,0.00035616,2]
[314379987,1708248642303,-500.0,0.00035616,2]
[314379988,1708248642312,-500.0,0.00035616,2]
[314379989,1708248642322,-500.0,0.00035616,2]
[314379990,1708248642331,-1000.0,0.00035616,7]
[314379991,1708248642341,-511.3614965,0.00035616,2]
[314379992,1708248642350,-614.49,0.00035616,2]
[314379993,1708248642359,-614.49,0.00035616,2]
[314379994,1708248642369,-614.49,0.00035616,2]
[314379995,1708248642378,-500.0,0.00035616,2]
[314379996,1708248642387,-500.0,0.00035616,2]
[314379997,1708248642397,-500.0,0.00035616,2]
[314379998,1708248642406,-500.0,0.00035616,2]
[314379999,1708248642416,-500.0,0.00035616,2]
[314380000,1708248642425,-500.0,0.00035616,2]
[314380001,1708248642434,-500.0,0.00035616,2]
[314380002,1708248642443,-372.78628082,0.00035616,2]
[314380003,1708248642452,-500.0,0.00035616,2]
[314380004,1708248642461,-500.0,0.00035616,2]
[314380005,1708248642470,-500.0,0.00035616,2]
[314380006,1708248642482,-500.0,0.00035616,2]
[314380007,1708248642491,-500.0,0.00035616,2]
[314380008,1708248642499,-500.0,0.00035616,2]
[314380009,1708248642508,-500.0,0.00035616,2]
[314380010,1708248642518,-500.0,0.00035616,2]
[314380011,1708248642527,-500.0,0.00035616,2]
[314380012,1708248642536,-500.0,0.00035616,2]
[314380013,1708248642545,-500.0,0.00035616,2]
[314380014,1708248642554,-500.0,0.00035616,2]
[314380015,1708248642565,-500.0,0.00035616,2]
[314380016,1708248642607,-500.0,0.00035616,2]
[314380017,1708248642617,-1205.34,0.00035616,2]
[314380018,1708248642627,-1205.34,0.00035616,2]
[314380019,1708248642636,-1205.34,0.00035616,2]
[314380020,1708248642646,-500.0,0.00035616,2]
[314380021,1708248642655,-500.0,0.00035616,2]
[314380022,1708248642664,-500.0,0.00035616,2]
[314380023,1708248642673,-395.0029318,0.00035616,2]
[314380024,1708248642683,-624.37341901,0.00035616,2]
[314380025,1708248642692,-500.0,0.00035616,2]
[314380026,1708248642701,-500.0,0.00035616,2]
[314380027,1708248642710,-500.0,0.00035616,2]
[314380028,1708248642720,-500.0,0.00035616,2]
[314380029,1708248642729,-500.0,0.00035616,2]
[314380030,1708248642738,-504.93940258,0.00035616,2]
[314380031,1708248642748,-500.0,0.00035616,2]
[314380032,1708248642758,-500.0,0.00035616,2]
[314380033,1708248642767,-500.0,0.00035616,2]
[314380034,1708248642776,-500.0,0.00035616,2]
[314380035,1708248642785,-318.13155621,0.00035616,2]
[314380036,1708248642794,-500.0,0.00035616,2]
[314380037,1708248642804,-500.0,0.00035616,2]
[314380038,1708248642813,-500.0,0.00035616,2]
[314380039,1708248642822,-500.0,0.00035616,2]
[314380040,1708248642831,-500.0,0.00035616,2]
[314380041,1708248642840,-500.0,0.00035616,2]
[314380042,1708248642850,-500.0,0.00035616,2]
[314380043,1708248642859,-535.94190369,0.00035616,2]
[314380044,1708248642868,-500.0,0.00035616,2]
[314380045,1708248642877,-500.0,0.00035616,2]
[314380046,1708248642886,-500.0,0.00035616,2]
[314380047,1708248642894,-500.0,0.00035616,2]
[314380048,1708248642904,-500.0,0.00035616,2]
[314380049,1708248642913,-1649.52,0.00035616,2]